Cogmind - Beta 12 *** ADVENTURER MODE // 2024.01.04 @ 23:43:32 Player: martinuzz Result: Destroyed by as-04746 with Assembled Rifle Performance ------------- Evolutions (0) 0 Regions Visited (4) 800 Robots Destroyed (39) 195 Value Destroyed (507) 507 Prototype IDs (5) 100 Alien Tech Used (0) 0 Bonus (300) 300 TOTAL SCORE: 1902 Bonus ------- Aligned with FarCom 300 Cogmind --------- Core Integrity 0/250 Matter 297/300 Energy 160/160 System Corruption 0% Temperature Cool (16) Movement Treading (160) Location -9/Mines Parts ------- > --- POWER (1) -------- Light Nuclear Core > --- PROPULSION (2) --- Light Treads Light Treads > --- UTILITY (2) ------ Large Storage Unit Signal Interpreter > --- WEAPON (2) ------- Improved Medium Laser Heavy Assault Rifle > --- INVENTORY (15) --- Light Deuterium Engine Light Treads Light Treads Hover Unit Hover Unit Improved Hover Unit Combat Airjet Superbattery (1500) Improved Terrain Scanner Sensor Drone Bay Improved Medium Laser Improved Medium Laser Heavy Assault Rifle Rocket Launcher Datajack Peak State ------------ > --- POWER ------------ Light Ion Engine > --- PROPULSION ------- Light Treads Light Treads > --- UTILITY ---------- Large Storage Unit Superbattery > --- WEAPON ----------- Improved Medium Laser Heavy Assault Rifle > --- INVENTORY -------- Light Ion Engine Light Treads Light Treads Hover Unit Hover Unit Hover Unit Hover Unit Sensor Array Signal Interpreter Improved Medium Laser Improved Medium Laser Heavy Assault Rifle Heavy Assault Rifle Rocket Launcher Datajack [Rating: 21] Favorites ----------- Power Light Ion Engine Engine Light Ion Engine Power Core Light Nuclear Core Propulsion Light Treads Treads Light Treads Leg Aluminum Leg Utility Large Storage Unit Device Sensor Array Storage Large Storage Unit Processor Signal Interpreter Weapon Heavy Assault Rifle Energy Gun Improved Medium Laser Ballistic Gun Heavy Assault Rifle Launcher Rocket Launcher Build | -11 -10 -10 -10 -9 ------- Run | Jun Mat Min Exi Min Slots Evolved . | . . . . . Power . | . . . . . Propulsion . | . . . . . Utility . | . . . . . Weapon . | . . . . . Parts Attached 34 | 7 16 1 2 8 Power 8 | 1 3 1 . 3 Engine 7 | 1 3 1 . 2 Core 1 | . . . . 1 Reactor . | . . . . . Propulsion 12 | 2 8 . . 2 Treads 8 | . 6 . . 2 Leg 4 | 2 2 . . . Wheel . | . . . . . Hover . | . . . . . Flight . | . . . . . Utility 7 | 2 2 . 2 1 Device 3 | 1 1 . 1 . Storage 3 | 1 1 . 1 . Processor 1 | . . . . 1 Hackware . | . . . . . Protection . | . . . . . Artifact . | . . . . . Weapon 7 | 2 3 . . 2 Energy Gun 3 | 1 2 . . . Energy Cannon . | . . . . . Ballistic Gun 3 | 1 1 . . 1 Ballistic Cannon . | . . . . . Launcher 1 | . . . . 1 Special Weapon . | . . . . . Impact Weapon . | . . . . . Slashing Weapon . | . . . . . Piercing Weapon . | . . . . . Special Melee Weapon . | . . . . . Unidentified Prototypes 2 | . 1 . 1 . Parts Lost 2 | . 1 . . 1 Power 1 | . . . . 1 Propulsion . | . . . . . Utility 1 | . 1 . . . Weapon . | . . . . . Highest Loss Streak 1 | . 1 . . 1 To Critical Strikes . | . . . . . Average Slot Usage (%) 97 | . 93 100 100 99 Engine 12 | . 14 14 14 10 Core 1 | . . . . 3 Treads 27 | . 27 28 28 28 Device 6 | . 8 14 14 . Storage 14 | . 14 14 14 14 Processor 5 | . . . . 14 Energy Gun 14 | . 14 14 14 14 Ballistic Gun 13 | . 14 14 14 11 Naked Turns . | . . . . . Heaviest Build 32 | 13 30 30 30 32 Greatest Support 40 | 20 40 40 40 40 Greatest Overweight (x) . | . . . . . Average Overweight (x) . | . . . . . Largest Inventory Capacity 15 | 8 15 15 15 15 Average Capacity 14 | 6 14 15 15 15 Most Carried 15 | 5 15 15 15 15 Average Carried 12 | 3 10 14 14 14 Final Capacity 15 | 8 15 15 15 15 Final Carried 15 | 4 14 14 15 15 Class Distribution -------------------- 100% | Mutant Dominant Class ---------------- Mutant | -10/Materials Mutant | -10/Mines Mutant | -10/Exiles Mutant | -9/Mines Resources | -11 -10 -10 -10 -9 ----------- Run | Jun Mat Min Exi Min Matter Collected 829 | 275 204 60 . 290 Remotely . | . . . . . Salvage Created 1004 | 108 427 92 . 377 Parts 78 | 6 29 13 . 30 Haulers Intercepted 1 | . 1 . . . Recyclers Shooed . | . . . . . Parts Field Recycled . | . . . . . Retrieved Matter . | . . . . . Parts Self-Destructed . | . . . . . Prevented . | . . . . . Kills | -11 -10 -10 -10 -9 ------- Run | Jun Mat Min Exi Min Combat Hostiles Destroyed 39 | . 10 6 . 23 Guns 32 | . 10 6 . 16 AOE 7 | . . . . 7 Classes Destroyed 9 | 2 5 1 . 1 Worker 2 | . 1 . . 1 Builder 1 | . . 1 . . Tunneler 1 | 1 . . . . Hauler 1 | . 1 . . . Recycler 4 | 1 1 . . 2 Watcher 3 | . 3 . . . Swarmer 23 | . 6 6 . 11 Grunt 4 | . 4 . . . Assembled 12 | . . . . 12 Best Kill Streak 4 | 2 3 3 . 4 Combat Bots Only 4 | . 3 3 . 4 Max Kills in Single Turn 3 | 1 2 2 . 3 Gunslinging 1 | . 1 1 . 1 Exploded 3 | . . . . 3 Melee . | . . . . . Uniques/NPCs Destroyed . | . . . . . Combat | -11 -10 -10 -10 -9 -------- Run | Jun Mat Min Exi Min Damage Taken 1070 | . 168 74 . 828 Core 255 | . 33 15 . 207 Absorbed by Shields . | . . . . . Regen/Repaired (Parts) 55 | . 55 . . . Core Remaining (%) 100 | 100 . . . . Volleys Fired 94 | 5 36 10 . 43 Largest 2 | 2 2 2 . 2 Hottest 89 | 60 88 79 . 89 Shots Fired 185 | 10 71 20 . 84 Gun 176 | 10 71 20 . 75 Cannon . | . . . . . Launcher 9 | . . . . 9 Special . | . . . . . Kinetic 83 | 5 36 10 . 32 Thermal 93 | 5 35 10 . 43 Explosive 9 | . . . . 9 Electromagnetic . | . . . . . Robot Hit Streak 21 | 7 9 19 . 21 Robot Miss Streak 3 | 1 2 1 . 3 Penetration Max . | . . . . . Secondary Targets 11 | . 4 2 . 5 Max Gunslinging Chain 1 | . 1 1 . 1 Shots Hit Robots 133 | 8 48 17 . 60 Core Hits 70 | 3 22 6 . 39 Critical Kills . | . . . . . Critical Parts Destroyed 2 | . 1 1 . . Critical Strikes 5 | . 2 1 . 2 Burn 3 | . 1 . . 2 Destroy 2 | . 1 1 . . Melee Attacks . | . . . . . Impact . | . . . . . Slashing . | . . . . . Piercing . | . . . . . Sneak Attacks . | . . . . . Combat Hostiles . | . . . . . Follow-up Attacks . | . . . . . Damage Inflicted 2354 | 78 619 278 . 1379 Guns 1861 | 78 619 278 . 886 Cannons . | . . . . . Explosions 493 | . . . . 493 Melee . | . . . . . Ramming . | . . . . . Kinetic 685 | 24 245 127 . 289 Thermal 1176 | 54 374 151 . 597 Explosive 493 | . . . . 493 Electromagnetic . | . . . . . Impact . | . . . . . Slashing . | . . . . . Piercing . | . . . . . Highest Corruption . | . . . . . Average Corruption . | . . . . . Corruption Purged . | . . . . . Corruption Blocked . | . . . . . Overload Shots . | . . . . . Overflow Damage 18 | . . . . 18 Projectiles . | . . . . . Explosions 18 | . . . . 18 Melee . | . . . . . Knockbacks . | . . . . . Impact . | . . . . . Kinetic . | . . . . . Secondary . | . . . . . Self-Inflicted Damage 72 | . . . . 72 Shots 3 | . . . . 3 Rammed . | . . . . . Targets Rammed 1 | . . 1 . . Kicked . | . . . . . Crushed 1 | . . 1 . . Highest Temperature 152 | 40 151 72 . 152 Average Temperature 46 | 17 49 29 . 50 Received Heat Transfer 244 | . 84 . . 160 Siege Activations . | . . . . . Robots Corrupted . | . . . . . Combat Hostiles . | . . . . . Parts Fried . | . . . . . Impact Corruptions . | . . . . . Robots Melted . | . . . . . Combat Hostiles . | . . . . . Parts Melted 2 | . 2 . . . Heat Transferred 2855 | 125 917 333 . 1480 Parts Sabotaged . | . . . . . Parts Stolen . | . . . . . Parts Stripped . | . . . . . Power Chain Reactions . | . . . . . Missiles Intercepted . | . . . . . Alert | -11 -10 -10 -10 -9 ------- Run | Jun Mat Min Exi Min Peak Influence 255 | 10 202 140 . 255 Initial 5 | . 5 . . . Average 61 | 3 60 85 . 55 Maximum Alert Level 1 | . 1 . . 1 Low Security (%) 96 | 100 98 100 . 92 Level 1 3 | . 1 . . 7 Level 2 . | . . . . . Level 3 . | . . . . . Level 4 . | . . . . . Level 5 . | . . . . . High Security . | . . . . . Max Security . | . . . . . Squads Dispatched 2 | . 2 . . . Investigation 2 | . 2 . . . Extermination . | . . . . . Reinforcement . | . . . . . Assault . | . . . . . Garrison . | . . . . . Intercept . | . . . . . Searches Triggered . | . . . . . Construction Impeded . | . . . . . Haulers Reinforced . | . . . . . Active Scanning Responses . | . . . . . Cargo Convoy Interrupts . | . . . . . Stealth | -11 -10 -10 -10 -9 --------- Run | Jun Mat Min Exi Min Distress Signals . | . . . . . Communications Jammed . | . . . . . Distress Signals . | . . . . . Times Spotted 52 | . 18 7 . 27 Peak Tracking Total 6 | . 3 3 . 6 Tactical Retreats 1 | . . . . 1 Traps | -11 -10 -10 -10 -9 ------- Run | Jun Mat Min Exi Min Traps Triggered 3 | . 3 . . . Indirectly . | . . . . . Trap Hack Attempts . | . . . . . Triggered . | . . . . . Disarmed . | . . . . . Reprogrammed . | . . . . . Reused . | . . . . . Traps Extracted . | . . . . . Installed . | . . . . . Triggered . | . . . . . Machines | -11 -10 -10 -10 -9 ---------- Run | Jun Mat Min Exi Min Machines Disabled 7 | . 3 . . 4 Max in Single Turn 3 | . 2 . . 3 Machines Repaired . | . . . . . Machines Sabotaged . | . . . . . Overloaded Fab Kills . | . . . . . Hacking | -11 -10 -10 -10 -9 --------- Run | Jun Mat Min Exi Min Machines Accessed 11 | . 8 2 . 1 Terminals 7 | . 5 2 . . Fabricators . | . . . . . Repair Stations 1 | . 1 . . . Recycling Units 2 | . 2 . . . Scanalyzers . | . . . . . Garrison Access . | . . . . . Total Hacks 34 | . 27 6 . 1 Successful 20 | . 15 4 . 1 Failed 14 | . 12 2 . . Catastrophic 4 | . 4 . . . Database Lockouts . | . . . . . Manual 1 | . . . 1 . Terminals 22 | . 16 6 . . Fabricators . | . . . . . Repair Stations 7 | . 7 . . . Recycling Units 4 | . 4 . . . Scanalyzers . | . . . . . Garrison Access . | . . . . . Terminal Hacks 13 | . 8 4 . 1 Record 1 | . . 1 . . Prototype ID Bank 2 | . 2 . . . Open Door 1 | . . . . 1 Emergency Access Points 1 | . 1 . . . Alert Level 2 | . 2 . . . Locate Traps 2 | . 2 . . . Dispatch Records 1 | . . 1 . . Transport Status 1 | . 1 . . . Zone Layout 2 | . . 2 . . Fabricator Hacks . | . . . . . Repair Station Hacks 5 | . 5 . . . Scan Component 3 | . 3 . . . Repair 2 | . 2 . . . Recycling Unit Hacks 2 | . 2 . . . Retrieve Components 2 | . 2 . . . Scanalyzer . | . . . . . Garrison Access Hacks . | . . . . . Unauthorized Hacks . | . . . . . Terminals . | . . . . . Fabricators . | . . . . . Repair Stations . | . . . . . Recycling Units . | . . . . . Scanalyzers . | . . . . . Garrison Access . | . . . . . Data Cores Recovered . | . . . . . Used . | . . . . . Hacking Detections 9 | . 7 2 . . Full Trace Events 1 | . 1 . . . Feedback Events . | . . . . . Feedback Blocked . | . . . . . Robot Schematics Acquired . | . . . . . Robots Built . | . . . . . Authchips . | . . . . . Time . | . . . . . Total Robot Build Rating . | . . . . . Part Schematics Acquired . | . . . . . Parts Built . | . . . . . Authchips . | . . . . . Time . | . . . . . Total Part Build Rating . | . . . . . Parts Repaired 2 | . 2 . . . Time 52 | . 52 . . . Parts Recycled . | . . . . . Recycled Matter . | . . . . . Retrieved Matter . | . . . . . Retrieved Components 17 | . 17 . . . Parts Scanalyzed . | . . . . . Part Schematics Acquired . | . . . . . Parts Damaged . | . . . . . Bothacking | -11 -10 -10 -10 -9 ------------ Run | Jun Mat Min Exi Min Used RIF Installer . | . . . . . Robots Hacked . | . . . . . Non-combat . | . . . . . Combat . | . . . . . Robot Hacks Applied . | . . . . . Relay Couplers Released . | . . . . . Fabnet Peak Effective % . | . . . . . Robots Rewired . | . . . . . Allies Hacked . | . . . . . Hacks Repelled . | . . . . . Allies | -11 -10 -10 -10 -9 -------- Run | Jun Mat Min Exi Min Total Allies 2 | . . 2 . . Largest Group 2 | . . 2 2 . Highest-Rated Group 48 | . . 48 48 . Highest-Rated Ally 31 | . . 31 31 . Total Orders . | . . . . . Ally Attacks . | . . . . . Total Damage . | . . . . . Kills . | . . . . . Allies Corrupted . | . . . . . Allies Melted . | . . . . . Intel | -11 -10 -10 -10 -9 ------- Run | Jun Mat Min Exi Min Robot Analysis Total . | . . . . . Derelict Logs Recovered 3 | . . 2 . 1 Drone Launches . | . . . . . Drone Recoveries . | . . . . . Exploration | -11 -10 -10 -10 -9 ------------- Run | Jun Mat Min Exi Min Turns Passed 3834 | 86 1353 558 453 1384 Spaces Moved 2109 | 50 698 310 280 771 Core 9 | 9 . . . . Treads 2054 | . 693 310 280 771 Legs 46 | 41 5 . . . Wheels . | . . . . . Hover . | . . . . . Flight . | . . . . . Fastest Speed 50 | 50 120 160 160 160 Average Speed 158 | 107 159 160 160 160 Slowest Speed 160 | 120 160 160 160 160 Overloaded Moves . | . . . . . Propulsion Burnouts . | . . . . . Robots Hopped . | . . . . . Cave-ins Triggered . | . . . . . Exploration Rate (%) 61 | 3 91 70 49 96 Regions Visited 4 Branch Regions 3 Pre-discovered Areas 1 | . . 1 . . Known Exits Taken 1 | . . 1 . . Unknown Exits Taken 3 | 1 1 . 1 . Scrap Searched 3 | . . . . 3 Spaces Dug . | . . . . . Terrain Destroyed 74 | . . . . 74 Melee . | . . . . . Projectile . | . . . . . AOE 74 | . . . . 74 Terrain Rammed . | . . . . . Walls Destroyed . | . . . . . Machines Disabled . | . . . . . Actions | -11 -10 -10 -10 -9 --------- Run | Jun Mat Min Exi Min Total 2416 | 73 869 352 284 838 Wait 112 | 1 81 27 2 1 Move 2105 | 49 697 309 279 771 Hop . | . . . . . Pick Up 48 | 11 26 2 1 8 Fast Attach . | . . . . . Attach 11 | 7 3 . . 1 Detach . | . . . . . Swap 23 | . 13 1 2 7 Drop 22 | . 13 2 . 7 Fire 94 | 5 36 10 . 43 Melee . | . . . . . Ram . | . . . . . Kick . | . . . . . Crush 1 | . . 1 . . Escape Stasis . | . . . . . Rewire . | . . . . . Trap . | . . . . . Miscellaneous . | . . . . . Route ------- -11/Junkyard -10/Materials (discovered 4 exits: [*Mat x2] / *Min x2) -10/Mines (discovered 3 exits: [*Mat x2] / *Exi) -10/Exiles -9/Mines (discovered 2 exits: *Mat x2) History --------- Turn | Location | Event 8 | -11/Junkyard | Discovered new exit (range 15) 87 | -11/Junkyard | Entered Materials 305 | -10/Materials | Build established: Mutant 341 | -10/Materials | Discovered new exit (range 14) 418 | -10/Materials | Discovered new exit (range 15) 659 | -10/Materials | Discovered new exit (range 7) 981 | -10/Materials | Discovered new exit (range 16) 1314 | -10/Materials | Repaired Lgt. Treads 1345 | -10/Materials | Repaired Lgt. Treads 1440 | -10/Materials | Entered Mines 1448 | -10/Mines | Identified exit to Exiles 1482 | -10/Mines | Discovered new exit (range 15) 1611 | -10/Mines | Learned location of Storage (-9) 1689 | -10/Mines | Discovered new exit (range 5) 1699 | -10/Mines | Joined a pair of Derelicts in attacking an 0b10 outpost 1955 | -10/Mines | Deemed a non-threat by the Exiles lab entrance 1998 | -10/Mines | Entered Exiles 1998 | -10/Exiles | Accompanied by 2 allies 2028 | -10/Exiles | Led the pair of lost Derelicts to a safe place 2039 | -10/Exiles | Met 8R-AWN 2068 | -10/Exiles | Met EX-HEX 2135 | -10/Exiles | Met EX-BIN 2157 | -10/Exiles | Aligned with FarCom system 2159 | -10/Exiles | Given EX-Vault access code 2215 | -10/Exiles | Opened EX-Vault 2223 | -10/Exiles | Found Prototype Storage 2224 | -10/Exiles | Identified Superbattery 2260 | -10/Exiles | Warned to stay clear of 0b10 Research branches 2433 | -10/Exiles | Discovered new exit (range 14) 2451 | -10/Exiles | Left Exiles lab with Superbattery 2451 | -10/Exiles | Entered Mines 2457 | -9/Mines | Met a Derelict bent on vengeance 2503 | -9/Mines | Learned location of 1 exit from Materials 2736 | -9/Mines | Discovered new exit (range 6) 2773 | -9/Mines | Identified exit to Materials 2937 | -9/Mines | Discovered exit to Materials (range 11) 3116 | -9/Mines | Found a hidden stash of uninstalled traps 3413 | -9/Mines | Assembled infested the area 3457 | -9/Mines | Core integrity fell below 50% 3458 | -9/Mines | Found the Drone Emporium 3465 | -9/Mines | Found Prototype Device 3532 | -9/Mines | Core integrity fell below 20% 3835 | -9/Mines | Destroyed by as-04746 with Assembled Rifle Last Messages --------------- evicted by all these Unaware tunnelers." 03723_ "Blame H1-IDC, who apparently didn't care about the consequences of repeatedly making a mess in Materials. Shooting at robots and generally destroying stuff raised the alert level high enough to trigger assault squads over in the main complex, and they later decided the best way to defend their interests would be to start expanding in this direction." 03751_ as-81759 destroyed. 03765_ Acquired 3 matter. 03775_ R-06 Scavenger destroyed. 03782_ Acquired 3 matter. 03797_ U-05 Engineer lays Concrete. 03808_ as-36000 sneak attacks. 03808_ K-01 Serf destroyed. 03808_ K-01 Serf collects debris. 03810_ as-36000 destroyed. 03811_ K-01 Serf collects debris. 03816_ as-44746 destroyed. 03816_ K-01 Serf collects debris. 03817_ Acquired 9 matter. 03820_ K-01 Serf collects debris. Map ----- +----------------------------------------------------+ | | | | | | | | | | | | | ?????????????????????????????????????????????????? | | ?????????????????????????????????????????????????? | | ########????????#######??????????????????????????? | | #???????## ##?????????????????????????? | | "" [*######??# #?????????????????????????# | | "" * *== #?## ##???????????????????????## | | "" =%<%#### ### ####??################??# | | "" [= #??# ## ##?# #??# | | #??# ##%| ### ########### #??## | | ########??# ==| ##????????# #???# | | ??????????# !*=%! ### #????????# ##### | | ??????????###%%|= #?##### #????????# | | ????????????#*a=a!* #?????## #???????# | | ????????????##!%%%=! ##?????## #???????####### | | ?????????????##r%%!==!=######## #?????????# | | ??????????????#%!=%|=%* ### #????????# | | ??????????????## !!a%!=%! #?## #????????# # | | ????????#####??## #|==%= #???# ##????????# # | | ?????#### %##??# ###%* ##????###?????????# # | | ????## !!=##?# #?##! @ #?????????????????# # | | ????# #?# #??## =!*#??????????######## # | | ???## ###% #???#%=%=#?########## # | | ??## =% % #???##!*##?# ###### # | | ?## %[[=[#????##!#??# ########??????# | | ## ######?????#%#?## #????????????## | | # ###?????######=### ##???###????## | | # ##???????# %==## #### ##???# < | | ## ###????????# %!% ## #???# # | | ?## ######??????# ####### ! #???## ## | | ??# #### ##????# #?????### [#???## ## | | ??## ##?# ##???# #???????## ##???# # | | #### #??# ##??# %#????????# #????# # | | #???# ####**#???????## ##???## # | | ### ##??# !#????#### [!####???## ## | | ### ##??# & ##???# =% #??????# ##? | | ## ##?##& & #### ##?## ! = #??????# ##?? | | ## #??##& ## *[### ####???# ##??? | | ### #???# !* ## #! ##### #???? | | #?## ##??## *= =*[ =%! #???? | | #??# #???###### != !*%= !% ####? | | #??# #????????## ## ##= %####### # | | #??# #?????????# ### %= #???# | | #??# ##????????# #?######## * #???# | | ##??## ##?????????# #???????# ##??# | +----------------------------------------------------+ Best States ------------- Heat Dissipation 25 Energy Generation 14 Energy Capacity 250 Matter Stores 300 Matter Capacity 300 Sight Range 16 Robot Scan Range 14 Terrain Scan Range 16 Terrain Scan Density 10 Resistance: KI 20 Resistance: TH 20 Resistance: EX 20 Resistance: EM 20 Resistance: I 20 Resistance: S 20 Resistance: P 20 Evasion (%) 50 Recoil Reduction 2 Offensive Hacking 10 Item Schematics ----------------- None Robot Schematics ------------------ None Fabricated ------------ Nothing Alien Tech Used ----------------- None Achievements -------------- None Challenges ------------ None Game ------ Seed 11235813 Manual? 1 Play Time 00:37:27 Cumulative 29.1 hours Start 2024.01.04 @ 23:01:38 End 2024.01.04 @ 23:43:32 Sessions 1 Manual Loads 0 Difficulty Adventurer Special Mode None Game No. 14 Rogue 0 Adventurer 14 Explorer 0 Win Type - Total 0 Types 0/0/0/0/0/0/0/0/0 Lore% 23 Gallery% 25 Achievement% 24 Wizard Run 0 Options --------- ASCII 0 Keyboard 0 Movement Mouse Keybinds 0 Fullscreen 1 Font 18/TerminusBold Map View 76x50 Tactical HUD 1 Map Filters NONE Filters NONE Steam 1 RUN: 1657ff2e-9545-4db2-b25d-eac8b134e729